bitfinex/quotes_ETHUSD_20251212
["timestamp","ask_amount","ask_price","bid_price","bid_amount"]
[1765550758682,0.405504,3232.5,3231.9,3.09413206]
[1765550758907,0.405504,3232.5,3231.2,0.001]
[1765550759187,0.405504,3231.6,3231.3,0.499]
[1765550759544,0.405504,3231.6,3231.3,3.59371818]
[1765550759881,0.98597929,3232.1,3231.3,3.59371818]
[1765550760083,0.405504,3232.2,3231.3,7.06145967]
[1765550760391,0.405504,3232.0,3231.4,0.499]
[1765550760881,0.405504,3232.2,3231.4,0.499]
[1765550761068,0.405504,3232.4,3231.4,0.9961]
[1765550761271,0.98597929,3232.4,3231.5,3.09453814]
[1765550761481,0.405504,3232.5,3231.5,6.18907628]
[1765550761666,0.405504,3232.5,3231.6,0.4971]
[1765550761858,0.98597929,3232.5,3231.6,0.4971]
[1765550762078,0.405504,3232.6,3231.6,0.4971]
[1765550762384,0.1914,3233.6,3232.5,0.6424]
[1765550762678,0.1914,3233.6,3232.6,0.9561]
[1765550762878,0.4686,3233.5,3232.6,0.499]
[1765550763180,0.37525382,3233.4,3232.6,0.499]
[1765550763381,0.1914,3233.6,3232.7,6.18677884]
[1765550763586,0.1914,3233.6,3232.7,3.09338942]
[1765550763782,0.5867,3232.8,3231.9,3.09412463]
[1765550763963,0.4363018,3232.7,3232.0,0.499]
[1765550764165,0.9049018,3232.7,3232.0,0.499]
[1765550764681,0.405504,3232.5,3232.0,3.59299497]
[1765550765178,0.405504,3232.3,3231.2,0.001]
[1765550765381,0.4686,3232.4,3231.3,0.499]
[1765550765382,0.405504,3232.0,3231.3,0.499]
[1765550765807,0.405504,3232.3,3231.4,0.4971]
[1765550765951,0.75541539,3232.3,3231.4,0.4971]
[1765550766147,0.405504,3232.5,3231.4,0.4971]
[1765550766353,1.01677709,3232.5,3231.2,3.09580344]
[1765550766579,0.405504,3232.3,3231.3,0.499]
[1765550766783,0.58047529,3232.5,3231.3,0.9961]
[1765550766986,3.09262409,3233.5,3232.4,0.6424]
[1765550767150,0.32840241,3233.4,3231.4,0.4971]
[1765550767348,12.40205932,3233.3,3231.4,3.0946339]
[1765550767561,12.40205932,3233.3,3231.5,0.499]
[1765550767562,1.48537709,3233.2,3231.5,0.499]
[1765550767962,0.405504,3233.0,3231.5,0.499]
[1765550768180,0.405504,3232.8,3231.5,0.499]
[1765550768504,0.405504,3232.6,3231.6,0.499]
[1765550768647,0.405504,3232.4,3231.6,0.499]
[1765550768853,0.405504,3232.4,3231.7,0.499]
[1765550769077,0.4993978,3232.5,3231.2,0.001]
[1765550769078,0.992204,3231.3,3231.2,0.001]
[1765550769284,0.405504,3231.3,3231.2,0.501]
[1765550769485,0.405504,3231.3,3231.2,0.001]
[1765550769657,1.269504,3231.3,3231.2,0.501]
[1765550770183,0.405504,3231.3,3231.2,0.501]
[1765550770386,0.1914,3232.4,3231.2,4.55002545]
[1765550770590,0.58047529,3232.6,3231.3,0.96690254]
[1765550770779,0.1914,3232.7,3231.3,1.54737783]
[1765550770977,0.77187529,3232.7,3231.4,0.4971]
[1765550771189,0.03091047,3233.4,3231.4,0.4971]
[1765550771190,3.56125562,3233.5,3232.6,0.6424]
[1765550771368,6.65391124,3233.5,3232.7,0.5]
[1765550771566,0.68453112,3233.4,3232.7,0.5]
[1765550771770,0.405504,3233.3,3232.7,0.5]
[1765550771970,0.002,3233.9,3233.3,0.6424]
[1765550772188,0.002,3233.9,3233.4,0.9571]
[1765550772685,0.002,3233.9,3233.5,0.4971]
[1765550773082,0.002,3233.9,3233.8,0.4571]
[1765550773381,0.002,3233.9,3233.7,0.58047529]
[1765550773894,0.002,3233.9,3233.8,0.4971]
[1765550774711,0.002,3233.9,3233.8,0.9971]
[1765550775492,0.002,3233.9,3233.8,4.66991247]
[1765550775837,0.002,3233.9,3233.8,5.44615656]
[1765550776293,0.002,3233.9,3233.8,5.90325656]
[1765550776610,0.002,3233.9,3233.8,5.40325656]
[1765550776909,0.002,3233.9,3233.8,5.90325656]
[1765550779837,0.002,3233.9,3233.8,4.62991247]
[1765550780039,0.002,3233.9,3233.8,5.12451247]
[1765550781539,0.002,3233.9,3233.8,4.62991247]
[1765550781697,0.002,3233.9,3233.8,5.12451247]
[1765550782020,0.002,3235.2,3233.8,5.12451247]
[1765550782021,0.002,3235.2,3234.2,0.6829]
[1765550782224,0.002,3235.2,3235.1,0.6807]
[1765550782423,0.002,3235.2,3235.1,1.6634]
[1765550782609,0.002,3235.2,3235.1,1.82974]
[1765550782812,0.002,3235.6,3235.1,15.33067876]
[1765550782997,0.002,3235.6,3235.3,0.4847]
[1765550783220,0.002,3235.6,3235.3,1.01561047]
[1765550783432,0.002,3235.6,3235.3,1.49831047]
[1765550783727,0.002,3235.6,3235.3,3.61439468]
[1765550784123,0.002,3236.3,3235.3,3.61439468]
[1765550784124,0.002,3236.3,3235.9,0.4847]
[1765550784303,0.002,3236.3,3236.2,0.6307]
[1765550784809,0.002,3236.3,3236.2,4.78391916]
[1765550785008,0.002,3236.3,3236.2,5.28391916]
[1765550785232,0.002,3236.3,3236.2,6.12441767]
[1765550786405,0.002,3236.3,3236.2,5.14171767]
[1765550786748,0.002,3236.3,3236.2,6.12441767]
[1765550787052,0.002,3237.1,3236.8,6.73827437]
[1765550787265,0.002,3237.1,3236.9,0.5]
[1765550787563,0.002,3237.1,3236.3,0.58047529]
[1765550787717,0.002,3237.1,3236.4,1.27470615]
[1765550788624,0.002,3237.1,3236.4,0.77470615]
[1765550788945,0.002,3237.1,3236.6,0.58047529]
[1765550789249,0.002,3237.1,3236.7,0.5]
[1765550789544,0.405504,3237.0,3236.7,0.5]
[1765550789843,0.002,3237.1,3236.8,0.5]
[1765550790413,0.002,3237.1,3237.0,0.4847]
[1765550790746,0.002,3237.1,3237.0,4.15445548]
[1765550790934,0.002,3237.1,3237.0,4.97710994]
[1765550791120,0.002,3237.1,3237.0,5.45980994]
[1765550791745,0.1969,3239.0,3237.1,0.58047529]
[1765550791949,0.6623,3239.3,3238.3,0.4847]
[1765550792145,0.1904,3239.3,3238.4,0.5]
[1765550792344,0.1904,3239.3,3238.4,0.6853]
[1765550792528,0.002,3239.3,3239.2,0.1927]
[1765550792852,0.8966,3239.3,3238.5,0.16527]
[1765550793052,0.6581,3238.6,3237.1,0.1833]
[1765550793258,0.405504,3238.5,3238.0,3.08832612]
[1765550793560,0.405504,3238.5,3237.3,0.03091047]
[1765550793561,0.830404,3238.5,3237.3,0.03091047]
[1765550793882,0.405504,3238.3,3237.8,3.08850892]
[1765550794160,0.405504,3238.3,3237.9,0.5]
[1765550794515,0.405504,3238.3,3238.0,3.08832344]
[1765550794722,0.405504,3238.3,3237.9,3.58839136]
[1765550795170,0.1884,3238.6,3237.9,3.58840988]
[1765550795467,0.405504,3238.5,3237.9,3.58840988]
[1765550795677,0.405504,3237.9,3236.5,6.76918484]
[1765550795962,0.405504,3237.7,3236.8,0.5]
[1765550796121,0.405504,3237.7,3236.3,3.08993262]
[1765550796326,0.405504,3237.5,3236.5,3.08972575]
[1765550796526,0.1884,3237.8,3236.5,3.08972575]
[1765550796527,0.1884,3237.8,3236.7,6.17912372]
[1765550796765,0.405504,3237.7,3236.7,6.17912372]
[1765550797226,0.405504,3237.7,3236.7,9.29960072]
[1765550797426,0.405504,3237.8,3236.9,0.03091047]
[1765550797649,0.405504,3237.8,3236.8,1.06317529]
[1765550797928,0.405504,3237.8,3236.9,1.5362776]
[1765550798325,0.405504,3237.6,3236.7,3.08955719]
[1765550798528,0.405504,3237.6,3236.2,0.146]
[1765550798722,0.405504,3237.4,3236.3,0.499]
[1765550798925,0.405504,3237.4,3236.4,0.499]
[1765550799157,0.405504,3237.3,3236.5,3.08973938]
[1765550799459,0.405504,3237.8,3236.6,1.00115631]
[1765550799758,0.877404,3237.8,3236.6,1.42204923]
[1765550799927,0.877404,3237.8,3236.6,0.9702597]
[1765550800128,0.405504,3237.8,3236.6,0.9702597]
[1765550800371,0.405504,3237.6,3236.7,0.499]
[1765550800562,6.365243,3237.9,3236.7,0.499]
[1765550800563,0.1884,3237.9,3236.7,0.499]
[1765550800765,0.405504,3237.8,3236.8,0.51361047]
[1765550800932,0.405504,3238.1,3236.8,0.51361047]
[1765550801127,0.4719,3238.2,3237.0,0.61138576]
[1765550801327,3.08786236,3238.5,3237.1,0.98795126]
[1765550801634,0.4719,3238.4,3237.2,0.499]
[1765550801835,0.4719,3238.4,3237.2,0.9817]
[1765550802049,0.4719,3238.4,3237.2,1.01261047]
[1765550802263,0.0307978,3238.3,3237.3,0.21644617]
[1765550802438,0.405504,3238.3,3237.3,0.499]
[1765550802761,3.85664221,3238.6,3237.3,0.9817]
[1765550802966,6.94440913,3238.6,3237.3,0.9817]
[1765550803131,6.17588932,3238.4,3237.2,3.08908933]
[1765550803331,0.405504,3238.2,3237.3,0.499]
[1765550803636,0.0307978,3238.1,3237.3,0.499]
[1765550803836,0.405504,3238.3,3237.3,0.499]
[1765550804046,0.405504,3238.1,3237.2,6.17817866]
[1765550804246,0.405504,3238.1,3237.2,3.08908933]
[1765550804434,0.877404,3238.3,3237.3,0.82429893]
[1765550804753,0.405504,3238.5,3237.3,9.05043033]
[1765550804947,1.45787929,3238.5,3237.3,9.05043033]
[1765550805243,0.405504,3238.5,3237.5,6.17760616]
[1765550805455,0.405504,3238.3,3237.5,6.17760616]
[1765550805776,0.4363018,3238.3,3237.6,0.499]
[1765550805975,0.405504,3238.1,3237.2,3.08900061]
[1765550806286,0.2517,3236.8,3236.2,0.146]
[1765550806451,0.2517,3236.8,3235.9,0.1959]
[1765550806452,0.405504,3236.7,3236.3,0.499]
[1765550806937,0.405504,3236.5,3236.3,0.499]
[1765550807141,0.1884,3236.9,3236.3,3.94779148]
[1765550807453,0.405504,3236.8,3236.3,7.03773987]
[1765550807767,0.405504,3236.8,3236.3,0.499]
[1765550808734,0.405504,3236.8,3236.3,3.5888674]
[1765550808934,0.877404,3236.8,3236.3,3.58893283]
[1765550809330,0.405504,3236.8,3236.3,3.58893283]
[1765550809535,0.405504,3236.6,3236.3,0.499]
[1765550809747,0.405504,3236.6,3236.3,3.58889922]
[1765550809954,0.405504,3236.6,3236.3,0.499]
[1765550810153,0.405504,3236.3,3235.6,0.1959]
[1765550810384,0.1884,3236.9,3236.3,3.08992282]
[1765550810550,0.405504,3236.8,3236.4,0.87605228]
[1765550810753,0.405504,3236.8,3236.4,0.499]
[1765550811286,0.4702,3236.5,3236.4,0.499]
[1765550811449,0.405504,3236.5,3236.4,3.58885292]
[1765550813171,0.405504,3237.1,3236.4,7.13680584]
[1765550813414,0.4886,3237.8,3236.5,0.48411047]
[1765550813681,1.06907529,3237.8,3236.6,0.76209163]
[1765550814091,0.4886,3237.7,3236.7,0.499]
[1765550814461,0.0307978,3237.6,3236.4,6.17970584]
[1765550814683,0.405504,3237.6,3236.8,0.499]
[1765550814887,0.405504,3237.7,3236.8,0.499]
[1765550815057,0.1744,3238.0,3236.9,0.03089375]
[1765550815255,0.1884,3238.6,3238.0,3.08832612]
[1765550815563,0.4886,3239.2,3238.1,0.499]
[1765550815765,0.4886,3239.2,3238.1,1.53267529]
[1765550816352,0.002,3239.3,3238.2,0.4532]
[1765550816682,0.4906,3239.3,3238.2,0.4532]
[1765550817281,0.4906,3239.3,3238.3,6.17608004]
[1765550817484,0.405504,3239.2,3238.3,3.46524011]
[1765550817670,0.405504,3239.2,3238.3,3.08804002]
[1765550817852,0.405504,3239.0,3238.3,3.08804002]
[1765550818053,0.405504,3239.0,3238.3,6.17608004]
[1765550818271,0.4886,3239.0,3238.4,0.499]
[1765550818481,6.17620068,3239.3,3238.4,0.499]
[1765550818482,0.002,3239.3,3238.4,0.9522]
[1765550818713,0.002,3239.3,3238.5,1.166028]
[1765550818859,0.002,3239.3,3239.2,8.35946279]
[1765550819063,0.002,3239.3,3239.2,0.499]
[1765550819268,0.002,3239.3,3239.2,3.58618202]
[1765550819470,0.002,3239.3,3239.2,4.49748202]
[1765550819678,0.002,3239.3,3239.2,4.36026018]
[1765550819893,0.4791,3239.3,3238.5,3.80064423]
[1765550820210,0.0038,3239.1,3238.6,0.499]
[1765550820498,0.405504,3239.0,3237.8,0.4532]
[1765550820654,0.894104,3239.0,3238.0,0.499]
[1765550820850,0.1988,3238.9,3238.1,0.16306753]
[1765550821088,0.3647,3238.1,3237.3,3.08899391]
[1765550821291,0.0036,3238.0,3237.1,3.08918476]
[1765550821453,0.0036,3238.0,3237.2,0.498]
[1765550821656,0.405504,3237.8,3237.3,0.498]
[1765550822060,0.4886,3237.7,3237.3,0.498]
[1765550822284,0.770204,3237.4,3237.3,0.498]
[1765550822476,0.405504,3237.4,3237.3,0.498]
[1765550822863,0.882604,3237.4,3237.3,0.498]
[1765550823048,0.882604,3237.4,3236.3,8.39246279]
[1765550823049,1.258604,3237.4,3236.3,8.39246279]
[1765550823252,3.08908933,3237.2,3236.4,4.42701637]
[1765550823475,0.405504,3237.2,3236.4,3.58777009]
[1765550823680,0.894104,3237.2,3236.4,3.58777009]
[1765550824190,0.405504,3236.4,3236.0,3.09017923]
[1765550824390,0.410004,3236.4,3236.1,0.498]
[1765550824554,0.405504,3236.3,3236.1,0.498]
[1765550824954,0.405504,3236.3,3235.6,0.1939]
[1765550825289,0.1535,3237.0,3236.2,0.5803]
[1765550825468,0.604304,3236.9,3236.3,0.498]
[1765550825668,0.3647,3236.3,3234.9,0.1939]
[1765550825882,1.67337929,3236.9,3234.8,0.001]
[1765550825883,0.604304,3235.3,3234.8,0.001]
[1765550826054,0.604304,3235.3,3235.2,0.499]
[1765550826388,1.092904,3235.3,3235.2,0.499]
[1765550826776,0.405504,3235.2,3234.8,0.001]
[1765550826995,0.894104,3235.2,3234.9,0.498]
[1765550827352,4.07716939,3235.0,3234.9,0.498]
[1765550827761,4.56576939,3235.0,3234.9,0.498]
[1765550828059,5.33144873,3235.0,3234.8,0.001]
[1765550828253,1.47457929,3234.9,3234.8,0.001]
[1765550829584,4.56586495,3234.9,3234.8,0.001]
[1765550829884,0.894104,3234.9,3234.8,0.001]
[1765550830086,0.405504,3234.9,3234.8,0.001]
[1765550830270,0.4886,3234.9,3234.8,0.001]
[1765550830467,0.894104,3234.9,3234.8,0.001]
[1765550830775,0.894104,3234.9,3234.8,0.5]
[1765550832556,0.405504,3234.9,3234.8,0.5]
[1765550834593,1.256504,3234.9,3234.8,0.5]
[1765550834792,4.92826495,3234.9,3234.8,0.001]
[1765550834965,2.63892199,3234.9,3234.8,0.5]
[1765550835369,1.34967929,3234.9,3234.8,0.5]
[1765550835874,1.256504,3234.9,3234.8,0.5]
[1765550836072,0.1988,3235.3,3234.8,3.59138122]
[1765550836389,0.4886,3235.5,3234.8,3.59138122]
[1765550836593,0.405504,3235.7,3234.8,3.59138122]
[1765550836790,1.87304133,3235.7,3234.8,3.59138122]
[1765550836996,0.4886,3235.7,3234.8,6.68276244]
[1765550837302,0.4886,3235.6,3234.8,3.59138122]
[1765550837503,0.405504,3235.5,3234.9,0.499]
[1765550837663,0.3627,3234.9,3234.8,0.001]
[1765550837869,0.3627,3234.9,3234.8,0.5]
[1765550838086,0.405504,3235.3,3234.8,0.5]
[1765550838292,0.653,3235.9,3234.9,6.18250011]
[1765550838482,0.405504,3235.8,3234.9,6.18250011]
[1765550838793,0.1999,3235.9,3235.0,0.4763]
[1765550839092,11.20425574,3237.4,3235.8,0.1901]
[1765550839093,0.1999,3236.5,3235.8,0.1901]
[1765550839300,0.1999,3236.5,3235.9,0.499]
[1765550839485,0.4531,3236.4,3236.0,0.499]
[1765550839698,0.1999,3236.5,3236.0,0.499]
[1765550839867,0.1999,3236.5,3236.0,3.5892263]
[1765550840267,0.1999,3236.7,3236.0,3.5892263]
[1765550840570,0.4531,3237.7,3236.8,0.4937]
[1765550840764,0.1988,3237.9,3236.9,0.499]
[1765550840969,0.1988,3237.9,3236.3,0.4763]
[1765550840970,0.4838978,3237.8,3236.3,0.4763]
[1765550841206,0.4838978,3237.8,3236.4,0.499]
[1765550841207,1.03357529,3237.8,3236.4,0.499]
[1765550841499,1.03357529,3237.8,3236.5,0.499]
[1765550841703,1.19402208,3237.7,3236.5,0.499]
[1765550841901,0.58047529,3237.5,3236.6,6.17932398]
[1765550842202,0.405504,3237.4,3236.6,6.17932398]
[1765550842372,0.4574,3237.6,3236.6,3.08966199]
[1765550842568,0.405504,3237.4,3236.5,0.499]
[1765550842770,0.405504,3237.2,3236.6,0.499]
[1765550842990,0.1909,3236.7,3235.8,3.0903584]
[1765550843298,0.4363018,3236.6,3235.9,0.499]
[1765550843526,0.405504,3236.6,3235.9,0.499]
[1765550843930,0.405504,3236.6,3236.0,3.09021582]
[1765550844894,0.405504,3236.6,3236.0,6.18045067]
[1765550845099,0.405504,3236.6,3236.0,3.09021582]
[1765550845723,0.405504,3236.6,3236.0,6.18045067]
[1765550846131,0.405504,3236.6,3236.0,3.09021582]
[1765550846431,0.4005,3236.1,3235.5,3.09070289]
[1765550846647,0.4005,3236.1,3235.1,3.28116276]
[1765550846648,0.405504,3236.0,3235.1,3.28110978]
[1765550846807,0.405504,3236.0,3235.2,0.499]
[1765550847002,0.4005,3236.1,3235.3,6.18180694]
[1765550847003,0.405504,3235.8,3235.3,6.18180694]
[1765550847202,0.405504,3235.8,3235.3,3.09090347]
[1765550847603,0.405504,3235.8,3235.3,6.18180694]
[1765550847800,6.17933227,3236.6,3235.8,3.09042586]
[1765550847801,0.98597929,3236.6,3235.8,3.09042586]
[1765550848040,0.405504,3236.4,3235.9,0.499]
[1765550848342,0.6133,3237.2,3235.9,0.9777]
[1765550848524,3.0891948,3237.1,3235.9,0.9777]
[1765550848841,0.1909,3237.9,3236.0,4.426431]
[1765550849003,0.6483,3237.9,3237.0,0.6458]
[1765550849203,0.002,3238.4,3237.1,0.499]
[1765550849431,0.4574,3238.3,3236.7,0.1956]
[1765550849636,1.06867309,3238.3,3236.8,0.499]
[1765550849832,3.08813538,3238.2,3236.9,6.17875126]
[1765550850003,0.4574,3238.3,3236.9,9.26812689]
[1765550850207,0.002,3238.4,3237.0,1.50328269]
[1765550850406,3.08995913,3238.4,3237.0,1.50328269]
[1765550850721,0.405504,3238.2,3237.1,0.4787]
[1765550850927,0.0307978,3238.1,3237.1,0.4787]
[1765550851231,0.405504,3238.0,3236.9,3.08937563]
[1765550851535,0.405504,3237.9,3237.0,0.499]
[1765550851831,0.596404,3237.9,3237.0,0.499]
[1765550852040,0.98597929,3237.9,3237.1,6.65706952]
[1765550852204,0.405504,3237.9,3237.1,6.65706952]
[1765550852640,0.405504,3238.0,3237.1,6.65706952]
[1765550852839,0.1909,3237.9,3237.1,6.65706952]
[1765550853007,0.1909,3237.9,3237.1,3.08918476]
[1765550853336,0.002,3238.4,3237.1,3.08918476]
[1765550853337,0.002,3238.4,3237.8,0.4502]
[1765550853641,0.002,3238.4,3237.9,0.499]
[1765550854006,0.002,3238.4,3238.0,3.56702612]
[1765550854216,0.002,3238.4,3237.9,0.499]
[1765550854543,0.002,3238.4,3237.0,0.83753756]
[1765550854544,0.4262,3238.0,3237.0,0.83753756]
[1765550854777,0.4262,3238.0,3237.5,3.08877292]
[1765550854909,0.002,3238.4,3237.1,0.9777]
[1765550855110,0.002,3238.4,3237.8,3.08850796]
[1765550855309,0.002,3238.4,3237.9,0.499]
[1765550855504,0.405504,3238.3,3237.9,0.499]
[1765550855738,0.405504,3238.3,3238.0,0.499]
[1765550855938,0.002,3238.4,3238.2,0.1956]
[1765550856129,0.002,3238.4,3238.0,3.08828645]
[1765550856437,0.002,3238.4,3238.1,0.499]
[1765550856939,0.407504,3238.4,3238.2,3.08812304]
[1765550857237,0.002,3238.4,3238.3,3.08804002]
[1765550858007,0.002,3238.4,3238.3,0.9289]
[1765550858205,0.002,3238.4,3238.3,1.50937529]
[1765550858581,0.002,3238.4,3238.3,2.63665642]
[1765550859265,0.002,3239.3,3238.7,0.4502]
[1765550859412,0.002,3239.3,3238.8,0.498]
[1765550859611,0.002,3239.3,3238.9,0.498]
[1765550859835,0.002,3239.3,3238.7,0.4502]
[1765550860134,0.002,3239.3,3239.0,3.58528595]
[1765550860340,0.002,3239.3,3239.1,0.498]
[1765550860509,0.407504,3239.3,3239.2,0.498]
[1765550860714,0.864904,3239.3,3239.2,0.498]
[1765550861041,1.99517446,3239.3,3237.6,0.6743]
[1765550861240,0.405504,3239.1,3237.7,0.9767]
[1765550861423,0.405504,3239.1,3237.7,0.4787]
[1765550861738,0.405504,3238.9,3237.9,3.08841554]
[1765550861914,0.405504,3238.9,3237.9,6.17683704]
[1765550862118,0.1909,3238.8,3238.0,0.7153537]
[1765550862332,0.405504,3238.9,3238.1,6.1764615]
[1765550862940,0.405504,3238.9,3238.1,3.08823075]
[1765550863146,7.03784478,3238.9,3238.0,3.80367617]
[1765550863345,0.0307978,3238.8,3238.0,3.80367617]
[1765550863550,0.405504,3238.7,3237.9,3.08838928]
[1765550863842,0.405504,3238.7,3238.0,3.08831852]
[1765550864045,0.0307978,3238.6,3237.8,0.498]
[1765550864243,0.405504,3238.3,3237.9,0.498]
[1765550864444,0.405504,3238.3,3237.9,3.58642074]
[1765550864749,3.52417307,3238.5,3237.9,0.498]
[1765550864915,0.4363018,3238.5,3237.9,3.58638915]
[1765550865121,3.49306729,3238.8,3237.9,3.58638915]
[1765550865321,3.49306729,3238.8,3237.9,6.67481065]
[1765550865629,3.49306729,3238.8,3237.9,3.58638915]
[1765550865824,0.405504,3238.6,3237.9,3.58638915]
[1765550866121,0.405504,3238.9,3238.0,0.4787]
[1765550866346,0.405504,3238.9,3238.1,6.1764615]
[1765550866545,0.405504,3238.9,3238.2,0.66551615]
[1765550866729,0.405504,3239.0,3238.2,0.66551615]
[1765550866933,0.4262,3238.3,3237.3,0.58047529]
[1765550867264,7.03766168,3239.0,3238.0,3.08831055]
[1765550867265,6.63215768,3239.0,3238.0,3.08831055]
[1765550867477,0.58047529,3239.1,3238.2,0.4502]
[1765550867765,0.58047529,3239.1,3238.2,0.65164466]
[1765550867766,0.405504,3238.9,3238.2,0.65164466]
[1765550867925,0.405504,3238.9,3238.3,0.498]
[1765550868130,0.405504,3239.0,3238.3,0.498]
[1765550868346,0.405504,3238.8,3238.3,0.498]
[1765550868725,0.405504,3238.6,3238.3,0.498]
[1765550869027,0.405504,3238.9,3238.3,3.58603461]
[1765550869425,0.405504,3238.9,3238.3,0.498]
[1765550869821,0.862904,3238.9,3238.3,3.58603499]
[1765550870031,0.862904,3238.9,3238.4,0.3586035]
[1765550870442,0.405504,3238.4,3238.3,0.498]
[1765550870673,0.4262,3238.4,3238.3,0.498]
[1765550870947,1.288804,3238.4,3238.3,0.498]
[1765550871523,0.405504,3238.4,3238.3,0.498]
[1765550874129,4.37674866,3238.4,3238.3,0.498]
[1765550874338,8.21115219,3238.4,3237.0,0.4811]
[1765550874537,0.405504,3238.1,3237.3,0.498]
[1765550874739,0.405504,3238.1,3236.6,3.08960894]
[1765550874740,0.405504,3237.2,3236.1,3.09008342]
[1765550874952,0.6226,3237.3,3236.2,0.498]
[1765550874953,0.405504,3237.0,3236.2,0.498]
[1765550875430,0.405504,3236.8,3236.2,3.5880158]
[1765550875628,0.405504,3236.8,3236.4,3.0898411]
[1765550875835,0.1279,3237.3,3236.5,0.03089757]
[1765550876049,0.405504,3237.2,3236.4,0.6677803]
[1765550876231,0.405504,3237.2,3236.4,3.08984701]
[1765550876554,0.405504,3237.0,3236.2,3.58802156]
[1765550876753,0.405504,3237.0,3236.2,0.498]
[1765550876959,0.405504,3236.8,3236.2,3.5880253]
[1765550877127,0.405504,3236.8,3236.2,3.58803994]
[1765550877739,0.405504,3237.0,3236.2,6.67808381]
[1765550877935,0.405504,3237.0,3236.3,0.03089948]
[1765550878142,0.405504,3237.1,3236.2,7.87510219]
[1765550878336,0.405504,3237.1,3236.3,0.4811]
[1765550878571,0.98597929,3237.2,3236.4,3.08985292]
[1765550878931,0.98597929,3237.2,3235.9,0.1881]
[1765550878932,0.405504,3237.0,3235.9,0.1881]
[1765550879170,0.59116233,3237.0,3236.2,3.09004217]
[1765550879353,0.405504,3236.8,3236.0,0.498]
[1765550879662,0.405504,3236.8,3236.0,3.58815834]
[1765550879865,0.405504,3236.8,3236.1,3.09013897]
[1765550880054,0.405504,3236.6,3236.0,0.498]
[1765550880366,0.829804,3236.1,3236.0,0.498]
[1765550880528,4.96511865,3236.1,3236.0,0.498]
[1765550880734,0.98597929,3236.0,3234.8,0.001]
[1765550880955,0.98597929,3236.0,3234.9,0.498]
[1765550880956,1.45067929,3236.0,3234.9,0.498]
[1765550881140,0.405504,3235.8,3234.9,0.498]
[1765550881483,0.831704,3235.0,3234.9,0.498]
[1765550881655,0.594404,3234.9,3233.9,0.001]
[1765550881839,0.98597929,3234.7,3234.0,0.498]
[1765550882041,0.405504,3234.5,3234.0,0.498]
[1765550882239,0.405504,3234.3,3234.0,0.498]
[1765550882649,0.405504,3234.7,3234.0,3.59011069]
[1765550882938,0.98597929,3234.7,3234.0,0.498]
[1765550883457,0.405504,3234.5,3234.0,0.498]
[1765550883781,0.98597929,3234.2,3233.9,0.001]
[1765550884072,0.98597929,3234.2,3233.2,0.001]
[1765550884073,0.405504,3233.7,3233.2,0.001]
[1765550884435,0.405504,3233.5,3233.2,0.001]
[1765550884635,0.98597929,3233.3,3233.2,0.001]
[1765550884859,0.405504,3234.0,3233.2,0.001]
[1765550885056,0.405504,3233.8,3233.2,0.001]
[1765550885267,0.90037692,3233.8,3233.2,0.001]
[1765550885459,1.36547692,3233.8,3233.2,0.001]
[1765550885658,0.405504,3233.6,3233.2,0.001]
[1765550885894,0.405504,3233.4,3233.3,0.499]
[1765550886900,0.58047529,3233.9,3233.3,0.499]
[1765550886901,0.405504,3233.6,3233.3,0.499]
[1765550887197,0.405504,3233.8,3233.3,0.499]
[1765550887401,0.1889,3234.7,3233.4,0.03092719]
[1765550887569,0.1889,3234.7,3233.4,0.71976338]
[1765550887772,0.405504,3234.6,3233.5,0.4811]
[1765550887960,0.1889,3234.7,3233.5,0.4811]
[1765550888656,0.58047529,3234.8,3233.6,6.1850569]
[1765550889192,11.20737858,3236.2,3233.7,0.4811]
[1765550889193,8.11730354,3236.2,3233.7,0.4811]
[1765550889372,0.4651,3235.5,3233.7,1.09960569]
[1765550889570,0.405504,3235.3,3233.2,0.001]
[1765550889770,0.0307978,3235.4,3233.3,0.375]
[1765550889771,0.405504,3233.7,3233.3,0.375]
[1765550889980,0.405504,3234.9,3233.4,3.09265096]
[1765550890163,0.405504,3234.0,3233.4,3.09265096]
[1765550890366,0.405504,3234.0,3233.3,0.375]
[1765550890563,0.870604,3234.0,3233.3,0.375]
[1765550890765,0.405504,3234.3,3233.4,3.43960971]
[1765550890981,0.405504,3234.3,3233.4,6.53232944]
[1765550891589,0.405504,3234.3,3233.4,6.18543946]
[1765550891789,0.405504,3234.3,3233.4,6.66653946]
[1765550891991,3.28071921,3234.4,3233.4,3.57381973]
[1765550892162,0.76937529,3234.4,3233.4,6.66653946]
[1765550892365,0.405504,3234.3,3233.4,6.66653946]
[1765550892565,0.405504,3234.3,3233.4,3.57381973]
[1765550892787,0.8321653,3234.3,3233.4,6.18543946]
[1765550892989,0.405504,3234.3,3233.4,6.18543946]
[1765550893367,0.405504,3234.3,3233.4,6.66653946]
[1765550894199,0.405504,3234.3,3233.2,0.001]
[1765550894200,0.405504,3234.1,3233.2,0.001]
[1765550894375,0.870604,3234.1,3233.5,0.499]
[1765550894575,0.0307978,3234.0,3233.2,0.001]
[1765550894781,0.405504,3233.7,3233.2,0.001]
[1765550895098,0.405504,3233.7,3233.3,0.499]
[1765550895278,0.405504,3233.5,3233.3,0.499]
[1765550895765,0.405504,3233.4,3233.3,0.499]
[1765550895969,0.870604,3233.4,3233.3,0.499]
[1765550896178,0.405504,3233.3,3233.1,0.001]
[1765550896379,0.870604,3233.3,3233.1,0.001]
[1765550896568,0.405504,3233.1,3232.8,0.001]